fUST/lending_fUST_20250606
["ID","MTS","AMOUNT","RATE_DAILY","PERIOD"]
[364640045,1749172244114,-151.0,0.00024314,7]
[364640046,1749172244123,-151.0,0.00024314,7]
[364640047,1749172244136,-151.0,0.00024314,7]
[364640048,1749172244146,-151.0,0.00024314,7]
[364640049,1749172244155,-211.269124,0.00024314,7]
[364640050,1749172244165,-159.80008,0.00024314,7]
[364640051,1749172244176,-151.0,0.00024314,7]
[364640052,1749172244186,-152.866879,0.00024314,7]
[364640053,1749172244195,-700.10532,0.00024314,7]
[364640054,1749172244206,-700.10532,0.00024314,7]
[364640055,1749172244217,-700.10532,0.00024314,7]
[364640056,1749172244227,-700.10532,0.00024314,7]
[364640057,1749172244236,-700.10532,0.00024314,7]
[364640058,1749172244245,-700.10532,0.00024314,7]
[364640059,1749172244255,-700.10532,0.00024314,7]
[364640060,1749172244264,-700.10532,0.00024314,7]
[364640061,1749172244274,-700.10532,0.00024314,7]
[364640062,1749172244284,-700.10532,0.00024314,7]
[364640063,1749172244294,-700.10532,0.00024314,7]
[364640064,1749172244304,-700.10532,0.00024314,7]
[364640065,1749172244314,-700.10532,0.00024314,7]
[364640066,1749172244324,-700.10532,0.00024314,7]
[364640067,1749172244335,-700.10532,0.00024314,7]
[364640068,1749172244344,-700.10532,0.00024314,7]
[364640069,1749172244354,-700.10532,0.00024314,7]
[364640070,1749172244363,-700.10532,0.00024314,7]
[364640071,1749172244373,-700.10532,0.00024314,7]
[364640072,1749172244382,-700.10531,0.00024314,7]
[364640073,1749172244391,-151.0,0.00024315,7]
[364640074,1749172244401,-151.0,0.00024315,7]
[364640075,1749172244410,-151.0,0.00024315,7]
[364640076,1749172244419,-151.0,0.00024315,7]
[364640077,1749172244427,-151.0,0.00024315,7]
[364640078,1749172244436,-255.18757,0.00024315,7]
[364640079,1749172244445,-151.0,0.00024315,7]
[364640080,1749172244454,-151.0,0.00024315,7]
[364640081,1749172244463,-151.0,0.00024315,7]
[364640082,1749172244472,-151.0,0.00024315,7]
[364640083,1749172244481,-189.938332,0.00024315,7]
[364640084,1749172244492,-182.689782,0.00024315,7]
[364640085,1749172244503,-182.689782,0.00024315,7]
[364640086,1749172244514,-182.689782,0.00024315,7]
[364640087,1749172244525,-182.689782,0.00024315,7]
[364640088,1749172244534,-182.689782,0.00024315,7]
[364640089,1749172244544,-182.689782,0.00024315,7]
[364640090,1749172244553,-182.689782,0.00024315,7]
[364640091,1749172244562,-182.689782,0.00024315,7]
[364640092,1749172244571,-182.689782,0.00024315,7]
[364640093,1749172244580,-182.689782,0.00024315,7]
[364640094,1749172244590,-182.689782,0.00024315,7]
[364640095,1749172244599,-182.689782,0.00024315,7]
[364640096,1749172244608,-182.689782,0.00024315,7]
[364640097,1749172244618,-182.689782,0.00024315,7]
[364640098,1749172244628,-182.689782,0.00024315,7]
[364640099,1749172244638,-182.689782,0.00024315,7]
[364640100,1749172244648,-182.689782,0.00024315,7]
[364640101,1749172244657,-182.689782,0.00024315,7]
[364640102,1749172244667,-182.689782,0.00024315,7]
[364640103,1749172244676,-182.689786,0.00024315,7]
[364640104,1749172244775,-151.0,0.00024315,7]
[364640105,1749172244785,-151.0,0.00024315,7]
[364640106,1749172244795,-151.0,0.00024315,7]
[364640107,1749172244804,-151.0,0.00024315,7]
[364640108,1749172244814,-151.0,0.00024315,7]
[364640109,1749172244824,-151.0,0.00024315,7]
[364640110,1749172244833,-173.658154,0.00024315,7]
[364640111,1749172244842,-82045.94803412,0.00024316,20]
[364640112,1749172244859,-50292.03464259,0.00024316,20]
[364640113,1749172244869,-305.31123134,0.00024316,2]
[364640114,1749172244878,-380000.0,0.00024316,60]
[364640115,1749172244887,-500000.0,0.00024316,30]
[364640116,1749172244896,-6040.0882725,0.00024316,2]
[364640117,1749172244906,-580.9140578,0.00024316,35]
[364640118,1749172244918,-84793.28489549,0.00024316,30]
[364640119,1749172244927,-2001.22408766,0.00024316,5]
[364640120,1749172244937,-800.0,0.00024316,5]
[364640121,1749172244948,-1117429.43944228,0.00024316,20]
[364640122,1749172244960,-2666.0,0.00024316,20]
[364640123,1749172244971,-6174.50898678,0.00024316,20]
[364640128,1749172245902,-440.0,0.00020413,2]
[364640129,1749172245912,-246.02296775,0.00024316,20]
[364640130,1749172245934,-440.0,0.00020687,2]
[364640131,1749172245943,-440.0,0.00020961,2]
[364640132,1749172245953,-4223.28,0.00024316,20]
[364640135,1749172245964,-569.77936835,0.00024316,20]
[364640146,1749172246245,-140.07040292,0.00024316,20]
[364640147,1749172246257,-440.87003063,0.00024316,20]
[364640159,1749172250139,-440.0,0.00019591,2]
[364640160,1749172250149,-430.0,0.00019591,2]
[364640161,1749172250158,-4856.77664191,0.00024316,20]
[364640166,1749172513344,150.0,0.00018811,2]
[364640167,1749172586022,150.0,0.00018263,2]
[364640168,1749172655650,150.0,0.00018251,2]
[364640171,1749172724583,150.0,0.0001882,2]
[364640172,1749172798379,150.0,0.00018246,2]
[364640176,1749172866984,150.0,0.00018242,2]
[364640179,1749172893301,210.422107,0.00013699,2]
[364640180,1749172934371,150.0,0.00018242,2]
[364640181,1749172941700,1500.0,0.00024657,120]
[364640182,1749172972577,216.0,0.00024657,120]
[364640183,1749172990139,155.0,0.00024657,120]
[364640184,1749173003108,150.0,0.00018241,2]
[364640186,1749173073865,150.0,0.00018799,2]
[364640187,1749173147873,150.0,0.00018242,2]
[364640188,1749173151105,-150.0,0.0001911,2]
[364640189,1749173151125,-152.90082717,0.00019491,2]
[364640190,1749173151146,-300.0,0.00019589,2]
[364640191,1749173151166,-300.0,0.0001959,2]
[364640192,1749173151187,-1200.0,0.0001959,2]
[364640193,1749173151207,-300.0,0.0001959,2]
[364640194,1749173151226,-300.0,0.0001959,2]
[364640195,1749173151245,-300.0,0.0001959,2]
[364640196,1749173151266,-195.57042236,0.00019591,2]
[364640197,1749173218962,150.0,0.00018797,2]
[364640199,1749173246267,-300.0,0.0001959,2]
[364640200,1749173246288,-193.14769169,0.00019591,2]
[364640201,1749173249095,-51.28188595,0.00019591,2]
[364640202,1749173249117,-440.0,0.00019591,2]
[364640203,1749173249139,-460.28,0.00019591,2]
[364640204,1749173249160,-440.0,0.00019591,2]
[364640205,1749173249181,-440.0,0.00019591,2]
[364640206,1749173249202,-440.0,0.00019591,2]
[364640207,1749173249223,-430.0,0.00019591,2]
[364640208,1749173249367,-389.58802324,0.00019591,2]
[364640209,1749173249388,-150.0,0.00019692,2]
[364640210,1749173249408,-440.0,0.00019861,2]
[364640211,1749173249429,-362.80588903,0.00019861,2]
[364640212,1749173249450,-440.0,0.00019865,2]
[364640213,1749173249477,-430.0,0.00019865,2]
[364640214,1749173249499,-442.49,0.00020139,2]
[364640215,1749173249522,-210.422107,0.00020187,2]
[364640216,1749173249544,-6431.22341922,0.00020245,2]
[364640217,1749173251079,-181.14041102,0.00020245,2]
[364640218,1749173254134,-461.43912134,0.00020245,2]
[364640220,1749173293805,150.0,0.00018246,2]
[364640222,1749173363477,150.0,0.0001825,2]
[364640223,1749173375057,188.77271446,0.000189,2]
[364640256,1749173432171,-150.0,0.00019115,2]
[364640257,1749173432180,-109.45,0.00019984,2]
[364640267,1749173437781,-40.55,0.00019984,2]
[364640269,1749173437791,-440.0,0.00020244,2]
[364640271,1749173437800,-398.07109527,0.00020244,2]
[364640274,1749173437812,-41.92890473,0.00020244,2]
[364640276,1749173437821,-440.0,0.00020244,2]
[364640278,1749173437830,-594.55,0.00020244,2]
[364640280,1749173437839,-440.0,0.00020244,2]
[364640281,1749173437848,-541.87275156,0.00020244,2]
[364640283,1749173437858,-440.0,0.00020244,2]
[364640285,1749173437867,-464.91765964,0.00020244,2]
[364640287,1749173437876,-551.93873445,0.00020244,2]
[364640290,1749173437884,-440.0,0.00020244,2]
[364640293,1749173437894,-17826.19704842,0.00020245,2]
[364640295,1749173437903,-594.55,0.00020518,2]
[364640297,1749173437913,-440.0,0.00020518,2]
[364640299,1749173437922,-440.0,0.00020518,2]
[364640301,1749173437931,-594.55,0.00020792,2]
[364640303,1749173437941,-440.0,0.00020792,2]
[364640305,1749173437950,-440.0,0.00020792,2]
[364640307,1749173437959,-150.0,0.00020853,2]
[364640309,1749173437968,-594.55,0.00021066,2]
[364640311,1749173437978,-440.0,0.00021066,2]
[364640313,1749173437987,-440.0,0.00021066,2]
[364640315,1749173437996,-179.8633715,0.00021133,2]
[364640317,1749173438006,-160.0,0.00021141,2]
[364640319,1749173438015,-842.5625,0.00021141,2]
[364640321,1749173438023,-423.7637613,0.00021146,2]
[364640323,1749173438032,-229.48950782,0.00021146,2]
[364640325,1749173438041,-212.94059491,0.00021149,2]
[364640327,1749173438050,-455.95345507,0.00021186,2]
[364640329,1749173438060,-300.0,0.00021339,2]
[364640331,1749173438069,-594.55,0.0002134,2]
[364640333,1749173438078,-440.0,0.0002134,2]
[364640335,1749173438087,-440.0,0.0002134,2]
[364640337,1749173438096,-210.8,0.000214,5]
[364640339,1749173438106,-210.8,0.000214,5]
[364640341,1749173438115,-210.8,0.000214,5]
[364640343,1749173438123,-210.8,0.000214,5]
[364640345,1749173438132,-210.8,0.000214,5]
[364640347,1749173438141,-210.8,0.000214,5]
[364640349,1749173438151,-210.8,0.000214,5]
[364640351,1749173438160,-210.8,0.000214,5]
[364640353,1749173438169,-210.8,0.000214,5]
[364640355,1749173438178,-440.0,0.00021526,2]
[364640357,1749173438187,-440.0,0.00021526,2]
[364640359,1749173438196,-430.0,0.00021526,2]
[364640361,1749173438206,-440.0,0.00021526,2]
[364640363,1749173438215,-440.0,0.00021526,2]
[364640364,1749173438224,-440.0,0.00021526,2]
[364640366,1749173438234,-370.0,0.00021526,2]
[364640368,1749173438243,-440.0,0.00021526,2]
[364640370,1749173438252,-440.0,0.00021526,2]
[364640372,1749173438262,-440.0,0.00021526,2]
[364640374,1749173438271,-440.0,0.00021526,2]
[364640376,1749173438281,-156.73599795,0.00021526,2]
[364640378,1749173438290,-430.0,0.00021526,2]
[364640380,1749173438299,-440.0,0.00021526,2]
[364640382,1749173438308,-440.0,0.00021526,2]
[364640384,1749173438318,-440.0,0.00021526,2]
[364640386,1749173438327,-404.05655566,0.00021526,2]
[364640388,1749173438337,-862.29466,0.00021526,2]
[364640390,1749173438346,-500.0,0.00021527,2]
[364640392,1749173438355,-440.0,0.00021527,2]
[364640394,1749173438365,-440.0,0.00021527,2]
[364640396,1749173438374,-440.0,0.00021527,2]
[364640398,1749173438383,-443.53,0.00021527,2]
[364640400,1749173438393,-556.25497633,0.00021527,2]
[364640402,1749173438403,-440.0,0.00021527,2]
[364640404,1749173438412,-247.81689148,0.00021527,2]
[364640406,1749173438422,-440.0,0.00021527,2]
[364640408,1749173438431,-440.0,0.00021527,2]
[364640410,1749173438440,-440.0,0.00021527,2]
[364640412,1749173438450,-440.0,0.00021527,2]
[364640414,1749173438460,-440.0,0.00021527,2]
[364640416,1749173438470,-4793.786416,0.00021528,2]
[364640418,1749173438480,-594.55,0.00021614,2]
[364640420,1749173438489,-440.0,0.00021614,2]
[364640422,1749173438499,-440.0,0.00021614,2]
[364640424,1749173438509,-150.0,0.00021722,2]
[364640426,1749173438520,-440.0,0.000218,2]
[364640428,1749173438530,-440.0,0.000218,2]
[364640430,1749173438540,-440.0,0.000218,2]
[364640432,1749173438549,-440.0,0.000218,2]
[364640434,1749173438558,-242.33,0.000218,2]
[364640436,1749173438567,-440.0,0.000218,2]
[364640438,1749173438577,-484.10306278,0.000218,2]
[364640440,1749173438587,-154.26190798,0.00021801,2]
[364640442,1749173438597,-440.0,0.00021801,2]
[364640444,1749173438606,-440.0,0.00021801,2]
[364640446,1749173438615,-492.26,0.00021801,2]
[364640448,1749173438624,-440.0,0.00021801,2]
[364640450,1749173438634,-232.98455373,0.00021801,2]
[364640452,1749173438643,-440.0,0.00021801,2]
[364640454,1749173438652,-594.55,0.00021888,2]
[364640456,1749173438661,-440.0,0.00021888,2]
[364640458,1749173438670,-440.0,0.00021888,2]
[364640460,1749173438679,-207.50703445,0.000219,6]
[364640462,1749173438688,-212.0045471,0.00021901,2]
[364640464,1749173438698,-5318.41188946,0.00022,2]
[364640466,1749173438707,-207.50703427,0.00022025,6]
[364640468,1749173438716,-440.0,0.00022074,2]
[364640470,1749173438725,-440.0,0.00022074,2]
[364640472,1749173438734,-440.0,0.00022074,2]
[364640474,1749173438745,-345.0220332,0.00022074,2]
[364640476,1749173438754,-285.37,0.00022075,2]
[364640478,1749173438764,-440.0,0.00022075,2]
[364640480,1749173438774,-440.0,0.00022075,2]
[364640482,1749173438783,-440.0,0.00022075,2]
[364640484,1749173438792,-207.50703427,0.0002215,6]
[364640485,1749173438801,-594.55,0.00022162,2]
[364640487,1749173438811,-440.0,0.00022162,2]
[364640490,1749173438821,-440.0,0.00022162,2]
[364640507,1749173438982,-440.0,0.00022252,2]
[364640510,1749173438994,-440.0,0.00022252,2]
[364640512,1749173439004,-440.0,0.00022252,2]
[364640514,1749173439014,-440.0,0.00022252,2]
[364640516,1749173439024,-440.0,0.00022252,2]
[364640518,1749173439034,-338.79835006,0.00022252,2]
[364640520,1749173439043,-440.0,0.00022252,2]
[364640522,1749173439053,-440.0,0.00022252,2]
[364640524,1749173439062,-440.0,0.00022252,2]
[364640526,1749173439071,-420.0,0.00022252,2]
[364640528,1749173439081,-440.0,0.00022252,2]
[364640530,1749173439090,-440.0,0.00022252,2]
[364640532,1749173439100,-440.0,0.00022252,2]
[364640534,1749173439110,-440.0,0.00022252,2]
[364640536,1749173439119,-440.0,0.00022252,2]
[364640538,1749173439129,-440.0,0.00022252,2]
[364640540,1749173439138,-422.72885539,0.00022252,2]
[364640542,1749173439148,-440.0,0.00022252,2]
[364640544,1749173439157,-288.37464327,0.00022252,2]
[364640546,1749173439167,-440.0,0.00022252,2]
[364640548,1749173439176,-440.0,0.00022252,2]
[364640550,1749173439188,-440.0,0.00022252,2]
[364640552,1749173439205,-355.09781055,0.00022252,2]
[364640554,1749173439214,-440.0,0.00022252,2]
[364640556,1749173439223,-440.0,0.00022252,2]
[364640558,1749173439232,-440.0,0.00022252,2]
[364640559,1749173439241,-440.0,0.00022252,2]
[364640561,1749173439250,-402.86698581,0.00022252,2]
[364640563,1749173439260,-202.81813816,0.00022252,2]
[364640565,1749173439269,-431.18877843,0.00022252,2]
[364640567,1749173439278,-440.0,0.00022252,2]
[364640569,1749173439287,-453.68292201,0.00022252,2]
[364640571,1749173439297,-430.0,0.00022252,2]
[364640573,1749173439306,-430.0,0.00022252,2]
[364640575,1749173439315,-431.3834317,0.00022252,2]
[364640577,1749173439325,-440.0,0.00022252,2]
[364640579,1749173439334,-440.0,0.00022252,2]
[364640581,1749173439343,-440.0,0.00022252,2]
[364640583,1749173439352,-440.0,0.00022252,2]
[364640585,1749173439361,-440.0,0.00022252,2]
[364640587,1749173439370,-440.0,0.00022252,2]
[364640589,1749173439380,-500.0,0.00022252,2]
[364640591,1749173439389,-440.0,0.00022252,2]
[364640593,1749173439399,-430.0,0.00022252,2]
[364640595,1749173439408,-440.0,0.00022252,2]
[364640597,1749173439417,-440.0,0.00022252,2]
[364640599,1749173439426,-440.0,0.00022252,2]
[364640600,1749173439436,-430.0,0.00022252,2]
[364640602,1749173439446,-440.0,0.00022252,2]
[364640604,1749173439455,-440.0,0.00022252,2]
[364640606,1749173439465,-430.94861114,0.00022252,2]
[364640608,1749173439475,-440.0,0.00022252,2]
[364640610,1749173439484,-440.0,0.00022252,2]
[364640612,1749173439497,-440.0,0.00022252,2]
[364640615,1749173439509,-430.46665608,0.00022252,2]
[364640617,1749173439520,-440.0,0.00022252,2]
[364640618,1749173439531,-440.0,0.00022252,2]
[364640620,1749173439541,-440.0,0.00022252,2]
[364640622,1749173439550,-214.07483374,0.00022252,2]
[364640624,1749173439559,-440.0,0.00022252,2]
[364640626,1749173439570,-430.0,0.00022252,2]
[364640628,1749173439579,-491.72568382,0.00022252,2]
[364640630,1749173439588,-440.0,0.00022252,2]
[364640632,1749173439599,-440.0,0.00022252,2]
[364640634,1749173439609,-440.0,0.00022252,2]
[364640636,1749173439621,-440.0,0.00022252,2]
[364640638,1749173439630,-207.50703427,0.00022275,6]
[364640640,1749173439639,-440.0,0.00022348,2]
[364640642,1749173439649,-440.0,0.00022348,2]
[364640644,1749173439659,-192.85351732,0.00022348,2]
[364640646,1749173439668,-440.0,0.00022349,2]
[364640648,1749173439678,-440.0,0.00022349,2]
[364640650,1749173439687,-440.0,0.00022349,2]
[364640652,1749173439697,-207.50703427,0.000224,7]
[364640654,1749173439707,-157.74,0.00022426,10]
[364640656,1749173439716,-594.55,0.00022436,2]
[364640658,1749173439725,-440.0,0.00022436,2]
[364640660,1749173439735,-440.0,0.00022436,2]
[364640662,1749173439746,-207.50703427,0.00022525,7]
[364640664,1749173439760,-440.0,0.00022526,2]
[364640666,1749173439771,-150.0,0.00022591,2]
[364640668,1749173439783,-440.0,0.00022622,2]
[364640670,1749173439793,-440.0,0.00022622,2]
[364640672,1749173439803,-440.0,0.00022623,2]
[364640674,1749173439813,-440.0,0.00022623,2]
[364640676,1749173439822,-440.0,0.00022623,2]
[364640678,1749173439832,-207.50703427,0.0002265,7]
[364640680,1749173439841,-594.55,0.0002271,2]
[364640682,1749173439850,-440.0,0.0002271,2]
[364640684,1749173439859,-440.0,0.0002271,2]
[364640685,1749173439869,-207.50703427,0.00022775,7]
[364640687,1749173439878,-207.4,0.00022823,2]
[364640688,1749173439887,-402.69,0.00022896,2]
[364640689,1749173439896,-440.0,0.00022896,2]
[364640690,1749173439906,-440.0,0.00022897,2]
[364640691,1749173439915,-440.0,0.00022897,2]
[364640692,1749173439924,-440.0,0.00022897,2]
[364640693,1749173439933,-207.50703427,0.000229,8]
[364640694,1749173439942,-594.55,0.00022984,2]
[364640695,1749173439951,-440.0,0.00022984,2]
[364640696,1749173439960,-440.0,0.00022984,2]
[364640697,1749173439970,-207.50703427,0.00023025,8]
[364640698,1749173439979,-207.50703427,0.0002315,8]
[364640699,1749173439988,-440.0,0.0002317,2]
[364640700,1749173439997,-306.14901748,0.00023171,2]
[364640701,1749173440006,-559.60507189,0.00023171,2]
[364640702,1749173440015,-440.0,0.00023171,2]
[364640703,1749173440025,-594.55,0.00023258,2]
[364640704,1749173440034,-378.17029332,0.00023258,2]
[364640705,1749173440043,-207.50703427,0.00023275,8]
[364640706,1749173440054,-207.50703427,0.000234,9]
[364640707,1749173440064,-440.0,0.00023444,2]
[364640708,1749173440073,-440.0,0.00023445,2]
[364640709,1749173440082,-207.50703427,0.00023525,9]
[364640710,1749173440091,-594.55,0.00023532,2]
[364640711,1749173440100,-207.50703427,0.0002365,9]
[364640712,1749173440110,-440.0,0.00023718,2]
[364640713,1749173440120,-440.0,0.00023719,2]
[364640714,1749173440129,-207.50703427,0.00023775,9]
[364640715,1749173440139,-594.55,0.00023806,2]
[364640716,1749173440148,-483.844004,0.00023829,3]
[364640717,1749173440157,-188.77271446,0.000239,2]
[364640718,1749173440166,-207.50703427,0.000239,10]
[364640719,1749173440175,-440.0,0.00023992,2]
[364640720,1749173440184,-440.0,0.00023993,2]
[364640721,1749173440193,-7048.01496982,0.00024,30]
[364640722,1749173440203,-207.50703427,0.00024025,10]
[364640723,1749173440212,-594.55,0.0002408,2]
[364640724,1749173440221,-207.50703427,0.0002415,10]
[364640725,1749173440230,-215.0738,0.00024192,2]
[364640726,1749173440241,-220.59133599,0.00024216,7]
[364640727,1749173440251,-440.0,0.00024266,2]
[364640728,1749173440262,-440.0,0.00024267,2]
[364640729,1749173440272,-207.50703427,0.00024275,10]
[364640730,1749173440282,-2000.0,0.000243,2]
[364640731,1749173440291,-2000.0,0.000243,2]
[364640732,1749173440301,-151.0,0.000243,6]
[364640733,1749173440312,-1127.86,0.000243,2]
[364640734,1749173440322,-150.0,0.000243,5]
[364640735,1749173440332,-176.5641048,0.00024301,2]
[364640736,1749173440342,-158.5442955,0.00024301,2]
[364640737,1749173440352,-572.6068135,0.00024301,2]
[364640738,1749173440363,-795.03,0.00024304,3]
[364640739,1749173440373,-2196.0,0.00024307,2]
[364640740,1749173440383,-709.0,0.00024307,2]
[364640741,1749173440392,-405.0,0.00024307,2]
[364640742,1749173440402,-151.0,0.0002431,7]
[364640743,1749173440412,-151.0,0.0002431,7]
[364640744,1749173440422,-151.0,0.0002431,7]
[364640745,1749173440431,-151.0,0.0002431,7]
[364640746,1749173440440,-151.0,0.0002431,7]
[364640747,1749173440450,-151.0,0.0002431,7]
[364640748,1749173440459,-151.0,0.0002431,7]
[364640749,1749173440468,-178.078633,0.0002431,7]
[364640750,1749173440477,-155.496671,0.0002431,7]
[364640751,1749173440487,-200.0,0.0002431,7]
[364640753,1749173440496,-151.0,0.0002431,7]
[364640754,1749173440505,-151.0,0.0002431,7]
[364640755,1749173440515,-151.0,0.0002431,7]
[364640756,1749173440528,-151.0,0.0002431,7]
[364640757,1749173440538,-151.0,0.0002431,7]
[364640758,1749173440548,-178.861954,0.0002431,7]
[364640759,1749173440558,-151.0,0.0002431,7]
[364640760,1749173440569,-500.0,0.0002431,2]
[364640761,1749173440579,-151.0,0.0002431,7]
[364640762,1749173440588,-151.0,0.0002431,7]
[364640763,1749173440599,-151.0,0.0002431,7]
[364640764,1749173440608,-151.0,0.0002431,7]
[364640765,1749173440618,-151.0,0.0002431,7]
[364640766,1749173440627,-151.0,0.0002431,7]
[364640769,1749173440640,-151.0,0.0002431,7]
[364640771,1749173440649,-151.0,0.0002431,7]
[364640773,1749173440658,-151.0,0.0002431,7]
[364640775,1749173440668,-151.0,0.0002431,7]
[364640777,1749173440677,-151.0,0.0002431,7]
[364640779,1749173440686,-151.0,0.0002431,7]
[364640781,1749173440696,-151.0,0.0002431,7]
[364640783,1749173440705,-151.0,0.0002431,7]
[364640785,1749173440715,-151.0,0.0002431,7]
[364640787,1749173440724,-151.0,0.0002431,7]
[364640789,1749173440734,-170.443582,0.0002431,7]
[364640791,1749173440743,-151.0,0.00024311,7]
[364640793,1749173440752,-151.0,0.00024311,7]
[364640795,1749173440761,-151.0,0.00024311,7]
[364640797,1749173440771,-151.0,0.00024311,7]
[364640799,1749173440780,-151.0,0.00024311,7]
[364640801,1749173440790,-151.0,0.00024311,7]
[364640803,1749173440799,-151.0,0.00024311,7]
[364640805,1749173440808,-213.759128,0.00024311,7]
[364640807,1749173440819,-213.759128,0.00024311,7]
[364640809,1749173440829,-213.759128,0.00024311,7]
[364640811,1749173440839,-213.759128,0.00024311,7]
[364640813,1749173440855,-213.759128,0.00024311,7]
[364640815,1749173440866,-213.759128,0.00024311,7]
[364640817,1749173440876,-213.759128,0.00024311,7]
[364640819,1749173440885,-213.759128,0.00024311,7]
[364640821,1749173440895,-213.759128,0.00024311,7]
[364640823,1749173440905,-213.759128,0.00024311,7]
[364640825,1749173440915,-213.759128,0.00024311,7]
[364640827,1749173440924,-213.759128,0.00024311,7]
[364640829,1749173440933,-213.759128,0.00024311,7]
[364640831,1749173440943,-213.759128,0.00024311,7]
[364640832,1749173440952,-213.759128,0.00024311,7]
[364640834,1749173440961,-213.759128,0.00024311,7]
[364640836,1749173440970,-213.759128,0.00024311,7]
[364640838,1749173440980,-213.759128,0.00024311,7]
[364640840,1749173440988,-213.759128,0.00024311,7]
[364640842,1749173440998,-213.759126,0.00024311,7]
[364640844,1749173441007,-151.0,0.00024311,7]
[364640846,1749173441017,-151.0,0.00024311,7]
[364640848,1749173441025,-151.0,0.00024311,7]
[364640850,1749173441035,-151.0,0.00024311,7]
[364640852,1749173441044,-151.0,0.00024311,7]
[364640854,1749173441054,-151.0,0.00024311,7]
[364640856,1749173441063,-224.279606,0.00024311,7]
[364640858,1749173441073,-151.0,0.00024311,7]
[364640860,1749173441082,-151.0,0.00024311,7]
[364640862,1749173441091,-151.0,0.00024311,7]
[364640864,1749173441101,-224.0,0.00024311,7]
[364640866,1749173441110,-151.0,0.00024311,7]
[364640868,1749173441120,-700.10532,0.00024311,7]
[364640870,1749173441129,-700.10532,0.00024311,7]
[364640872,1749173441138,-700.10532,0.00024311,7]
[364640874,1749173441147,-700.10532,0.00024311,7]
[364640876,1749173441157,-700.10532,0.00024311,7]
[364640878,1749173441166,-700.10532,0.00024311,7]
[364640880,1749173441176,-700.10532,0.00024311,7]
[364640882,1749173441185,-700.10532,0.00024311,7]
[364640884,1749173441194,-700.10532,0.00024311,7]
[364640886,1749173441203,-700.10532,0.00024311,7]
[364640888,1749173441212,-700.10532,0.00024311,7]
[364640890,1749173441222,-700.10532,0.00024311,7]
[364640892,1749173441231,-700.10532,0.00024311,7]
[364640894,1749173441240,-700.10532,0.00024311,7]
[364640896,1749173441250,-700.10532,0.00024311,7]
[364640898,1749173441259,-700.10532,0.00024311,7]
[364640900,1749173441268,-700.10532,0.00024311,7]
[364640902,1749173441277,-700.10532,0.00024311,7]
[364640904,1749173441287,-700.10532,0.00024311,7]
[364640906,1749173441296,-700.10531,0.00024311,7]
[364640908,1749173441307,-151.0,0.00024311,7]
[364640910,1749173441317,-151.0,0.00024311,7]
[364640912,1749173441326,-151.0,0.00024311,7]
[364640914,1749173441335,-622.551573,0.00024311,7]
[364640916,1749173441345,-151.0,0.00024311,7]
[364640918,1749173441355,-151.0,0.00024311,7]
[364640920,1749173441364,-622.551573,0.00024311,7]
[364640922,1749173441374,-159.80008,0.00024311,7]
[364640924,1749173441383,-622.551573,0.00024311,7]